bitfinex/quotes_SOLUSD_20250809
["timestamp","ask_amount","ask_price","bid_price","bid_amount"]
[1754779568414,40.34,180.83,180.8,8.73373202]
[1754779568610,40.34,180.83,180.81,3.78563464]
[1754779568907,40.34,180.83,180.82,8.90373202]
[1754779569422,40.34,180.83,180.82,3.95563464]
[1754779569629,40.34,180.83,180.82,8.90373202]
[1754779570003,40.34,180.83,180.82,3.95563464]
[1754779570204,40.34,180.83,180.82,8.90373202]
[1754779572119,40.34,180.83,180.82,3.95563464]
[1754779572310,40.34,180.83,180.82,8.90373202]
[1754779572720,40.34,180.83,180.82,5.61809738]
[1754779573513,40.34,180.83,180.82,0.67]
[1754779573814,40.34,180.83,180.82,5.61809738]
[1754779574317,4.94809738,180.9,180.82,11.14845906]
[1754779574627,158.74548327,180.92,180.83,0.67]
[1754779574832,66.32,180.91,180.87,4.94809738]
[1754779575037,66.32,180.91,180.87,5.61809738]
[1754779575214,71.92809738,180.91,180.87,0.67]
[1754779575415,5.52791597,180.9,180.87,0.67]
[1754779575630,40.32,180.89,180.87,0.67]
[1754779576131,40.32,180.89,180.86,4.94809738]
[1754779576309,40.32,180.89,180.85,5.61809738]
[1754779576629,40.32,180.89,180.86,5.61809738]
[1754779577014,40.32,180.89,180.87,0.67]
[1754779577208,40.32,180.89,180.86,4.94809738]
[1754779577534,5.5285272,180.88,180.85,5.61809738]
[1754779577735,40.32,180.87,180.85,0.67]
[1754779578231,40.32,180.87,180.85,5.61809738]
[1754779578428,40.32,180.87,180.85,4.94809738]
[1754779578609,40.32,180.87,180.86,0.67]
[1754779578808,45.92809738,180.87,180.83,0.67]
[1754779579047,5.60809738,180.86,180.81,5.61809738]
[1754779579232,40.3,180.85,180.81,5.61809738]
[1754779579641,40.3,180.85,180.79,5.53118205]
[1754779579642,0.66,180.84,180.79,0.67]
[1754779579807,45.24809738,180.83,180.78,0.06]
[1754779580012,4.94809738,180.82,180.78,0.06]
[1754779580213,40.3,180.81,180.79,0.67]
[1754779580718,40.3,180.81,180.78,5.00809738]
[1754779580924,40.3,180.81,180.79,3.77356224]
[1754779581127,40.3,180.81,180.8,3.77356224]
[1754779581438,40.3,180.81,180.79,3.77356224]
[1754779581640,40.3,180.81,180.8,3.77356224]
[1754779582331,45.83066755,180.81,180.8,3.77356224]
[1754779582527,40.3,180.81,180.79,3.77356224]
[1754779582734,40.3,180.81,180.8,3.77356224]
[1754779583626,40.3,180.81,180.8,4.44356224]
[1754779584084,40.3,180.81,180.8,9.39165962]
[1754779584526,40.3,180.81,180.8,8.72165962]
[1754779584727,40.3,180.81,180.8,9.39165962]
[1754779586136,40.3,180.82,180.8,9.39165962]
[1754779586337,32.18945294,180.85,180.81,8.72165962]
[1754779586546,32.18945294,180.85,180.82,3.77356224]
[1754779586547,40.28,180.83,180.82,3.77356224]
[1754779586750,40.28,180.83,180.82,8.72165962]
[1754779587050,40.28,180.83,180.82,9.39165962]
[1754779587248,40.28,180.83,180.82,3.77356224]
[1754779587424,40.28,180.83,180.82,8.72165962]
[1754779587626,40.28,180.83,180.82,9.39165962]
[1754779588352,40.28,180.83,180.82,14.9220213]
[1754779588537,40.28,180.85,180.82,14.9220213]
[1754779588740,40.28,180.85,180.84,4.94809738]
[1754779588940,40.28,180.85,180.84,9.39165962]
[1754779589449,40.28,180.85,180.84,8.72165962]
[1754779590364,40.28,180.85,180.84,4.94809738]
[1754779590565,40.28,180.85,180.84,8.73489443]
[1754779590764,40.28,180.85,180.84,9.39489443]
[1754779591603,40.28,180.85,180.84,8.73489443]
[1754779592244,40.28,180.85,180.84,3.78679705]
[1754779592444,40.96,180.85,180.84,3.78679705]
[1754779593249,40.28,180.85,180.84,3.78679705]
[1754779593445,40.96,180.85,180.84,3.78679705]
[1754779594032,40.28,180.85,180.84,3.78679705]
[1754779595360,40.96,180.85,180.84,3.78679705]
[1754779597860,40.28,180.85,180.84,3.78679705]
[1754779598069,40.28,180.85,180.84,9.39489443]
[1754779598367,40.28,180.85,180.84,4.44679705]
[1754779598568,40.28,180.85,180.84,9.39489443]
[1754779599276,40.28,180.85,180.84,9.39914317]
[1754779599579,40.28,180.85,180.84,8.73914317]
[1754779600380,40.24,180.87,180.84,8.73914317]
[1754779600561,40.24,180.87,180.85,3.79104579]
[1754779600760,40.24,180.87,180.86,3.79104579]
[1754779602379,40.92,180.87,180.86,3.79104579]
[1754779602568,40.24,180.87,180.86,4.45104579]
[1754779602970,40.24,180.87,180.86,3.79104579]
[1754779603656,40.25,180.89,180.86,14.92828173]
[1754779603863,0.03,180.89,180.88,4.94809738]
[1754779604103,0.03,180.89,180.88,8.73914317]
[1754779604252,0.03,180.89,180.88,9.39914317]
[1754779605457,0.03,180.89,180.88,8.73914317]
[1754779607977,0.03,180.89,180.88,8.74364845]
[1754779608385,0.03,180.89,180.88,14.93217565]
[1754779608764,40.2,180.93,180.88,14.93217565]
[1754779608977,40.2,180.93,180.91,4.94809738]
[1754779609165,40.2,180.93,180.92,3.79555107]
[1754779609776,0.03,180.95,180.92,9.40364845]
[1754779610088,0.03,180.95,180.93,4.45555107]
[1754779610289,0.03,180.95,180.94,8.74364845]
[1754779610500,0.03,180.95,180.94,3.79555107]
[1754779610696,0.03,180.95,180.94,9.40364845]
[1754779612073,0.03,180.95,180.94,14.93034238]
[1754779612975,0.03,180.95,180.94,9.40364845]
[1754779613183,0.03,180.95,180.94,14.93034238]
[1754779614390,0.03,180.95,180.94,8.74364845]
[1754779615396,0.65,180.95,180.91,4.94809738]
[1754779615702,0.65,180.95,180.92,3.7649987]
[1754779615703,0.62,180.94,180.92,3.7649987]
[1754779615904,0.62,180.93,180.9,4.94809738]
[1754779616201,0.62,180.93,180.91,3.76514316]
[1754779616406,0.62,180.93,180.92,3.76514316]
[1754779616900,0.62,180.93,180.91,3.76481156]
[1754779617096,0.62,180.93,180.92,3.76481156]
[1754779617297,0.62,180.93,180.91,3.76481156]
[1754779617485,51.30455884,180.95,180.92,3.76481156]
[1754779617680,45.73646146,180.95,180.91,4.94809738]
[1754779617883,46.35646146,180.95,180.92,3.76447534]
[1754779618584,0.62,180.94,180.89,4.94809738]
[1754779618782,45.73646146,180.95,180.9,9.3723207]
[1754779618987,45.73639392,180.95,180.91,9.37226523]
[1754779619303,0.62,180.94,180.89,0.69]
[1754779619499,0.62,180.94,180.9,8.71240918]
[1754779619700,0.62,180.94,180.91,3.76414801]
[1754779619900,45.73639392,180.95,180.91,9.40224539]
[1754779620207,0.62,180.94,180.91,4.94809738]
[1754779620411,40.21,180.95,180.92,0.69]
[1754779620590,40.21,180.95,180.92,5.63809738]
[1754779620795,40.21,180.95,180.93,4.94809738]
[1754779621002,40.21,180.95,180.93,5.63809738]
[1754779622024,40.21,180.95,180.93,4.94809738]
[1754779622702,0.03,180.95,180.94,4.94809738]
[1754779622885,0.03,180.95,180.94,5.63809738]
[1754779623290,0.03,180.95,180.94,9.39965365]
[1754779624508,0.03,180.95,180.94,3.76155627]
[1754779624900,0.03,180.95,180.94,8.70965365]
[1754779627703,0.03,180.95,180.94,4.94809738]
[1754779628014,0.03,180.95,180.94,8.70935383]
[1754779628809,0.03,180.95,180.94,4.94809738]
[1754779629017,0.03,180.95,180.94,8.71000041]
[1754779629209,0.72,180.95,180.94,3.76239469]
[1754779629993,0.03,180.95,180.94,3.76239469]
[1754779630995,0.03,180.95,180.93,4.94809738]
[1754779631308,0.03,180.95,180.94,3.76386808]
[1754779633402,0.03,180.95,180.94,4.94809738]
[1754779633919,0.72,180.95,180.93,4.94809738]
[1754779634103,0.72,180.95,180.92,0.69]
[1754779634418,5.63809738,180.94,180.89,0.69]
[1754779634623,0.69,180.93,180.9,3.76624297]
[1754779634809,6.21725857,180.93,180.91,3.76624297]
[1754779635010,6.21725857,180.93,180.89,5.63809738]
[1754779635209,6.21725857,180.93,180.9,3.76624929]
[1754779635510,6.21725857,180.93,180.91,3.76624929]
[1754779636223,6.21725857,180.93,180.89,0.69]
[1754779636420,0.69,180.92,180.9,3.76717465]
[1754779636720,0.69,180.91,180.88,4.94809738]
[1754779636902,0.69,180.91,180.89,3.7671786]
[1754779637101,0.69,180.91,180.9,3.76743841]
[1754779637295,5.52741911,180.92,180.89,3.76743841]
[1754779637501,5.52741911,180.92,180.9,3.76743841]
[1754779637718,6.21741911,180.92,180.88,5.63809738]
[1754779637930,6.21741911,180.92,180.89,3.7675237]
[1754779638221,6.21741911,180.92,180.9,3.7675237]
[1754779638419,6.21741911,180.92,180.88,5.63809738]
[1754779638620,0.69,180.91,180.89,3.76849116]
[1754779639010,0.69,180.91,180.87,4.94809738]
[1754779639322,0.69,180.91,180.88,3.76838384]
[1754779639620,6.21770181,180.91,180.89,3.76902425]
[1754779639808,6.21770181,180.91,180.87,5.63809738]
[1754779640009,6.21770181,180.91,180.88,3.76919027]
[1754779640221,6.21770181,180.91,180.89,3.76919027]
[1754779640411,6.21770181,180.91,180.87,5.63809738]
[1754779640710,6.21770181,180.91,180.88,3.76993953]
[1754779640916,6.21770181,180.91,180.89,3.76993953]
[1754779641120,6.21770181,180.91,180.87,5.63809738]
[1754779641312,6.21770181,180.91,180.88,3.75326057]
[1754779641519,6.21770181,180.91,180.89,3.75326057]
[1754779641709,6.21770181,180.91,180.87,5.63809738]
[1754779641910,6.21770181,180.91,180.88,3.75424319]
[1754779642117,6.21770181,180.91,180.89,3.75424319]
[1754779642313,6.21770181,180.91,180.87,5.63809738]
[1754779642629,6.21770181,180.91,180.88,3.75538435]
[1754779642929,6.21770181,180.91,180.89,3.75538435]
[1754779643133,6.21770181,180.91,180.87,5.63809738]
[1754779643311,4.94809738,180.89,180.88,3.75631676]
[1754779643514,0.69,180.89,180.88,3.75631676]
[1754779644425,0.69,180.89,180.85,5.63809738]
[1754779644426,5.63809738,180.89,180.84,4.94809738]
[1754779644634,0.69,180.88,180.85,3.75721959]
[1754779644931,0.69,180.87,180.86,3.75721959]
[1754779645308,6.21883286,180.87,180.86,3.75721959]
[1754779646827,5.52858002,180.88,180.86,3.75721959]
[1754779647026,5.52819363,180.9,180.85,4.94809738]
[1754779647336,10.47629101,180.9,180.87,0.69]
[1754779647513,5.52769134,180.91,180.87,5.63809738]
[1754779647839,5.52769134,180.91,180.88,0.69]
[1754779648054,5.52769134,180.91,180.88,0.75]
[1754779648550,6.21769134,180.91,180.88,0.75]
[1754779648738,11.16578872,180.91,180.88,0.06]
[1754779648935,5.63809738,180.9,180.88,0.06]
[1754779649154,4.94809738,180.89,180.88,0.06]
[1754779649528,0.69,180.89,180.88,0.06]
[1754779649850,5.63809738,180.89,180.88,0.06]
[1754779650240,11.16631895,180.89,180.88,0.06]
[1754779650852,5.52822157,180.89,180.88,0.06]
[1754779651459,5.52797486,180.9,180.88,0.06]
[1754779651686,5.52797486,180.9,180.88,0.72]
[1754779651868,5.52797486,180.9,180.88,0.06]
[1754779652749,10.47577761,180.91,180.88,0.06]
[1754779653331,66.08,180.92,180.88,5.00809738]
[1754779653657,0.03,180.93,180.91,4.94809738]
[1754779653829,0.03,180.93,180.92,4.94809738]
[1754779654036,0.03,180.93,180.92,5.60809738]
[1754779655869,0.03,180.93,180.92,9.35997145]
[1754779657172,0.03,180.93,180.92,8.69997145]
[1754779657370,0.03,180.93,180.92,3.75187407]
[1754779657578,0.03,180.93,180.92,9.35997145]
[1754779658473,0.72,180.93,180.88,0.06]
[1754779658769,45.54730488,180.92,180.89,3.75337805]
[1754779658971,5.63809738,180.91,180.88,0.06]
[1754779659354,50.68299284,180.92,180.88,0.06]
[1754779659563,50.49540226,180.92,180.88,0.06]
[1754779659756,4.94809738,180.9,180.88,0.06]
[1754779659972,4.94809738,180.89,180.88,0.06]
[1754779660273,0.69,180.89,180.88,0.06]
[1754779660463,5.63809738,180.91,180.88,0.06]
[1754779660776,5.52791597,180.9,180.88,3.8147665]
[1754779660978,6.21764527,180.91,180.88,0.06]
[1754779661279,11.16574265,180.91,180.88,0.06]
[1754779661472,10.47574265,180.91,180.88,0.06]
[1754779661974,45.54736873,180.92,180.89,4.41406899]
[1754779662173,45.54736873,180.92,180.89,0.66]
[1754779662376,40.02,180.92,180.9,9.36211396]
[1754779662580,40.02,180.92,180.9,4.94809738]
[1754779662880,40.02,180.92,180.89,0.66]
[1754779663077,40.02,180.92,180.9,8.70186512]
[1754779663375,40.02,180.92,180.9,4.94809738]
[1754779664474,40.02,180.92,180.9,5.60809738]
[1754779665256,0.03,180.93,180.91,3.75424929]
[1754779665457,0.03,180.93,180.91,4.94809738]
[1754779665679,0.03,180.93,180.92,3.75391353]
[1754779666058,11.19509677,180.93,180.91,3.75391353]
[1754779666266,26.0,180.9,180.88,0.06]
[1754779666477,44.94809738,180.89,180.88,0.06]
[1754779666784,45.63809738,180.89,180.88,0.06]
[1754779666981,46.21822157,180.89,180.88,0.06]
[1754779667188,51.16631895,180.89,180.88,0.06]
[1754779667380,46.21822157,180.89,180.88,0.06]
[1754779667686,51.16631895,180.89,180.88,0.06]
[1754779668556,46.21822157,180.89,180.88,0.06]
[1754779668764,51.16631895,180.89,180.88,0.06]
[1754779669583,50.47631895,180.89,180.88,0.06]
[1754779670085,45.52822157,180.89,180.88,0.06]
[1754779671083,51.16631895,180.89,180.88,0.06]
[1754779671469,51.16631895,180.89,180.88,1e-08]
[1754779671777,26.0,180.86,180.82,0.06]
[1754779671978,4.94809738,180.83,180.82,0.06]
[1754779672159,44.94809738,180.83,180.8,0.06]
[1754779672360,44.94809738,180.83,180.65,13.83861063]
[1754779672361,9.89619476,180.81,180.71,4.43441476]
[1754779672599,4.94809738,180.73,180.72,3.77441476]
[1754779672760,4.94809738,180.73,180.69,0.2]
[1754779672761,45.61809738,180.73,180.69,0.2]
[1754779672956,0.69,180.72,180.69,0.2]
[1754779673174,39.98,180.73,180.69,0.2]
[1754779673175,39.98,180.71,180.69,0.2]
[1754779673383,4.94809738,180.7,180.69,0.2]
[1754779673584,6.22403431,180.7,180.69,0.2]
[1754779674086,46.22403431,180.7,180.69,0.2]
[1754779674276,0.69,180.7,180.69,0.2]
[1754779674465,66.27834726,180.7,180.69,1e-08]
[1754779674790,61.33024988,180.7,180.69,1e-08]
[1754779674969,69.42526867,180.7,180.69,1e-08]
[1754779675307,54.3190531,180.7,180.69,1e-08]
[1754779675602,74.92501879,180.7,180.69,1e-08]
[1754779675768,74.23501879,180.7,180.69,1e-08]
[1754779675964,74.92501879,180.7,180.69,1e-08]
[1754779676174,72.36403431,180.7,180.69,1e-08]
[1754779676372,80.4590531,180.7,180.69,1e-08]
[1754779676878,40.3190531,180.7,180.69,1e-08]
[1754779677200,81.3790531,180.7,180.69,1e-08]
[1754779677366,62.39024988,180.7,180.69,1e-08]
[1754779677766,91.4221952,180.7,180.56,3.75387587]
[1754779677982,8.09501879,180.6,180.55,0.66]
[1754779678290,42.44,180.59,180.56,0.66]
[1754779678592,42.44,180.58,180.56,0.66]
[1754779678759,42.44,180.59,180.56,0.66]
[1754779679687,42.44,180.59,180.53,8.79501879]
[1754779679890,42.44,180.59,180.55,8.09501879]
[1754779680086,42.44,180.59,180.56,0.7]
[1754779680290,8.09501879,180.57,180.51,0.7]
[1754779680465,42.68,180.56,180.5,0.7]
[1754779680669,50.77501879,180.56,180.5,0.7]
[1754779680877,8.09501879,180.54,180.48,0.7]
[1754779681195,42.72,180.53,180.46,0.7]
[1754779681389,42.90793574,180.53,180.46,0.7]
[1754779681573,42.72,180.53,180.49,8.09501879]
[1754779681892,42.72,180.53,180.44,15.10621557]
[1754779682091,48.25930876,180.53,180.45,0.7]
[1754779682279,48.25930876,180.53,180.45,8.79501879]
[1754779682280,25.5,180.5,180.45,8.79501879]
[1754779682484,42.94,180.49,180.41,0.7]
[1754779682797,42.94,180.49,180.44,8.09501879]
[1754779682973,42.94,180.49,180.45,8.09501879]
[1754779683286,51.09501879,180.49,180.43,0.7]
[1754779683491,43.0,180.49,180.43,0.7]
[1754779683676,43.0,180.49,180.35,31.65167923]
[1754779683677,8.09501879,180.47,180.35,31.65167923]
[1754779683989,8.09501879,180.43,180.36,4.4258904]
[1754779684204,43.02,180.43,180.36,0.7]
[1754779684488,43.02,180.43,180.35,14.91539604]
[1754779684489,8.09501879,180.4,180.35,14.91539604]
[1754779684792,8.09501879,180.36,180.35,14.91539604]
[1754779684996,51.39501879,180.36,180.19,13.87382697]
[1754779685292,26.0,180.33,180.18,14.915396]
[1754779685522,5.546927,180.28,180.12,5.55185431]
[1754779685669,26.0,180.24,180.13,5.77020657]
[1754779685877,45.62,180.23,180.13,5.77020657]
[1754779686188,19.4142445,180.28,180.14,0.7]
[1754779686387,26.0,180.24,180.14,0.7]
[1754779686701,45.82,180.25,180.13,28.89460994]
[1754779686901,31.546927,180.28,180.2,8.09501879]
[1754779686902,26.0,180.28,180.2,8.09501879]
[1754779687105,45.84,180.27,180.15,31.86970264]
[1754779687397,26.0,180.28,180.15,26.0]
[1754779687599,45.84,180.3,180.16,5.55062166]
[1754779687993,26.5,180.31,180.18,8.09501879]
[1754779687994,45.9,180.29,180.18,8.09501879]
[1754779688193,26.0,180.3,180.17,15.10621557]
[1754779688500,11.87960946,180.34,180.29,8.09501879]
[1754779688803,11.87960946,180.34,180.33,12.24999695]
[1754779688987,11.87960946,180.34,180.33,0.7]
[1754779689388,11.87960946,180.34,180.33,12.94999695]
[1754779689601,11.87960946,180.34,180.33,6.245389]
[1754779689805,11.87960946,180.34,180.33,12.94999695]
[1754779689980,11.87960946,180.34,180.33,28.05621252]
[1754779690385,46.04,180.47,180.34,34.51400086]
[1754779690684,46.56,180.48,180.43,12.24999695]
[1754779690989,72.06087571,180.51,180.37,15.10621557]
[1754779691301,59.31087876,180.51,180.37,15.10621557]
[1754779691479,26.0,180.48,180.34,5.54508151]
[1754779691676,26.0,180.48,180.34,0.7]
[1754779691677,0.5,180.47,180.34,0.7]
[1754779691882,12.24999695,180.4,180.34,0.7]
[1754779692078,0.5,180.42,180.34,12.94999695]
[1754779692392,26.0,180.4,180.34,0.7]
[1754779692600,26.0,180.4,180.28,20.65314257]
[1754779692601,12.24999695,180.37,180.31,0.7]
[1754779692798,12.24999695,180.37,180.31,12.94999695]
[1754779693105,12.24999695,180.32,180.29,0.06]
[1754779693276,74.3,180.36,180.29,0.06]
[1754779693482,14.1841225,180.4,180.34,12.24999695]
[1754779693688,13.6841225,180.4,180.36,12.24999695]
[1754779694079,13.6841225,180.4,180.37,12.24999695]
[1754779694296,13.6841225,180.4,180.38,12.24999695]
[1754779694495,13.6841225,180.4,180.39,12.94999695]
[1754779694817,25.93411945,180.4,180.35,12.94999695]
[1754779695013,13.6841225,180.4,180.35,12.24999695]
[1754779695183,14.37228453,180.4,180.33,12.24999695]
[1754779695507,13.87228453,180.4,180.37,12.24999695]
[1754779695709,13.87228453,180.4,180.29,15.16621557]
[1754779695710,13.6841225,180.4,180.38,0.7]
[1754779696004,13.6841225,180.4,180.39,12.94999695]
[1754779696396,13.6841225,180.4,180.39,12.24999695]
[1754779696596,13.6841225,180.4,180.39,0.7]
[1754779697000,13.6841225,180.4,180.38,12.24999695]
[1754779697313,13.6841225,180.4,180.35,5.54477405]
[1754779697502,13.6841225,180.4,180.35,17.794771]
[1754779697812,13.6841225,180.4,180.32,6.24569653]
[1754779697813,12.74999695,180.39,180.32,6.24569653]
[1754779697984,38.24999695,180.37,180.31,12.24999695]
[1754779698185,38.24999695,180.37,180.3,5.54602684]
[1754779698394,38.24999695,180.37,180.32,12.24999695]
[1754779698630,38.24999695,180.37,180.3,5.54602684]
[1754779698803,38.74999695,180.37,180.31,12.24999695]
[1754779699131,26.5,180.37,180.31,12.24999695]
[1754779699308,38.74999695,180.37,180.31,12.24999695]
[1754779699613,60.14999695,180.36,180.3,12.24999695]
[1754779699911,60.33814958,180.36,180.31,12.24999695]
[1754779700102,60.83814958,180.36,180.3,12.24999695]
[1754779700410,12.24999695,180.33,180.29,0.06]
[1754779700606,0.1882132,180.35,180.3,12.24999695]
[1754779700815,60.64999695,180.36,180.3,12.24999695]
[1754779700998,12.24999695,180.35,180.3,12.24999695]
[1754779701308,0.1882132,180.36,180.32,12.24999695]
[1754779701508,48.1282132,180.36,180.32,12.94999695]
[1754779701825,4.4,180.34,180.32,5.54563418]
[1754779701995,4.4,180.34,180.31,5.5460011]
[1754779702315,4.4,180.34,180.3,5.54631005]
[1754779702514,4.9,180.34,180.29,0.06]
[1754779702899,12.74999695,180.33,180.29,0.06]
[1754779703211,26.0,180.31,180.29,0.06]
[1754779703414,73.92,180.31,180.29,0.06]
[1754779703595,0.5,180.3,180.29,0.06]
[1754779703910,18.29630865,180.3,180.29,0.06]
[1754779704109,6.0463117,180.3,180.29,0.06]
[1754779704299,18.29630865,180.3,180.29,0.06]
[1754779704789,18.48452185,180.3,180.29,0.06]
[1754779705186,33.59073742,180.3,180.29,1e-08]
[1754779705417,21.34074047,180.3,180.29,1e-08]
[1754779705709,26.0,180.31,180.29,1e-08]
[1754779705913,48.14829367,180.3,180.29,1e-08]
[1754779706093,47.98,180.3,180.29,1e-08]
[1754779706292,60.22999695,180.3,180.29,1e-08]
[1754779706518,48.48,180.3,180.29,1e-08]
[1754779706689,47.98,180.3,180.29,1e-08]
[1754779707093,12.24999695,180.33,180.29,1e-08]
[1754779707292,13.873325,180.31,180.29,1e-08]
[1754779707591,13.873325,180.31,180.29,12.94999696]
[1754779707814,12.24999695,180.35,180.29,12.94999696]
[1754779708130,47.88,180.34,180.29,18.49653084]
[1754779708297,47.88,180.34,180.3,12.94999695]
[1754779708496,47.88,180.34,180.3,0.7]
[1754779708702,47.88,180.34,180.29,12.24999696]
[1754779709021,12.43829062,180.35,180.29,18.49659393]
[1754779709241,47.82,180.33,180.3,12.24999695]
[1754779709405,47.98829367,180.35,180.31,0.71]
[1754779709729,47.8,180.35,180.31,12.24999695]
[1754779709889,4.4,180.33,180.31,12.24999695]
[1754779710298,4.4,180.33,180.29,1e-08]
[1754779710299,4.4,180.33,180.32,12.24999695]
[1754779710705,4.4,180.33,180.31,12.24999695]
[1754779711116,4.4,180.33,180.32,12.24999695]
[1754779711525,4.4,180.33,180.31,12.24999695]
[1754779711946,4.4,180.33,180.32,12.24999695]
[1754779712302,0.18822574,180.37,180.32,12.95999695]
[1754779712528,47.72,180.38,180.35,12.24999695]
[1754779712826,47.72,180.38,180.37,12.24999695]
[1754779713012,47.72,180.38,180.37,12.95999695]
[1754779713727,12.249997,180.39,180.37,12.95999695]
[1754779714031,12.249997,180.39,180.34,12.24999695]
[1754779714336,12.249997,180.39,180.31,26.0]
[1754779714337,12.24999695,180.37,180.32,0.71]
[1754779714622,47.64,180.36,180.29,32.25659619]
[1754779714803,47.64,180.36,180.32,12.24999695]
[1754779715007,47.64,180.36,180.32,0.71]
[1754779715318,47.64,180.36,180.31,12.24999695]
[1754779715507,59.88999695,180.36,180.29,1e-08]
[1754779715706,12.74999695,180.35,180.29,12.24999696]
[1754779715912,12.43816002,180.35,180.3,12.24999695]
[1754779716108,65.43476157,180.36,180.3,0.71]
[1754779716317,53.18476462,180.36,180.3,12.95999695]
[1754779716507,65.43476157,180.36,180.3,12.95999695]
[1754779716708,53.18476462,180.36,180.31,12.24999695]
[1754779716926,47.64,180.36,180.32,12.24999695]
[1754779717126,4.58816307,180.38,180.34,12.24999695]
[1754779717431,19.22742153,180.4,180.3,5.54627237]
[1754779717432,47.58,180.37,180.35,12.95999695]
[1754779717648,13.6841225,180.4,180.36,12.95999695]
[1754779717820,61.2441225,180.4,180.38,12.24999695]
[1754779718126,61.2441225,180.4,180.37,12.24999695]
[1754779718327,61.2441225,180.4,180.39,12.24999695]
[1754779718541,61.2441225,180.4,180.36,0.71]
[1754779718711,61.2441225,180.4,180.35,26.0]
[1754779718712,61.2441225,180.4,180.35,38.24999695]
[1754779718916,61.2441225,180.4,180.39,12.24999695]
[1754779719116,61.2441225,180.4,180.36,0.71]
[1754779719117,63.26192956,180.4,180.38,12.24999695]
[1754779719328,4.4,180.39,180.38,12.24999695]
[1754779719707,4.4,180.39,180.38,12.95999695]
[1754779719912,61.2441225,180.4,180.38,12.95999695]
[1754779719913,13.6841225,180.4,180.38,18.50378795]
[1754779720127,13.6841225,180.4,180.38,12.95999695]
[1754779720326,2.02046153,180.39,180.38,12.24999695]
[1754779720840,2.02046153,180.39,180.37,12.24999695]
[1754779721011,2.02046153,180.38,180.36,12.24999695]
[1754779721341,49.86413068,180.37,180.33,12.24999695]
[1754779721509,2.02413068,180.36,180.34,12.24999695]
[1754779721709,2.02413068,180.35,180.34,12.24999695]
[1754779721944,2.02413068,180.35,180.34,0.71]
[1754779722236,2.02418626,180.35,180.34,12.95999695]
[1754779722644,47.84,180.37,180.34,18.50507846]
[1754779722938,47.84,180.37,180.36,12.24999695]
[1754779723139,49.86825079,180.37,180.36,12.95999695]
[1754779723931,2.02825079,180.37,180.36,18.50446357]
[1754779724225,13.6841225,180.4,180.36,44.50446357]
[1754779724426,13.6841225,180.4,180.39,38.24999695]
[1754779724627,13.6841225,180.4,180.39,38.95999695]
[1754779725435,17.3482618,180.4,180.39,38.95999695]
[1754779725635,17.3482618,180.4,180.39,44.50354149]
[1754779726544,13.6841225,180.4,180.39,44.50354149]
[1754779727551,17.35188682,180.4,180.39,44.50354149]
[1754779727851,3.66776432,180.4,180.39,59.60975706]
[1754779728533,1e-08,180.4,180.39,59.60975706]
[1754779728852,0.03,180.42,180.4,15.10621557]
[1754779729035,0.03,180.42,180.41,27.35621252]
[1754779729222,0.03,180.42,180.41,28.06621252]
[1754779729823,0.03,180.42,180.41,33.60914251]
[1754779731027,0.03,180.44,180.42,15.10621557]
[1754779731221,0.03,180.44,180.43,12.24999695]
[1754779731427,0.03,180.44,180.43,12.95999695]
[1754779731844,0.03,180.44,180.43,18.50231252]
[1754779732233,0.03,180.44,180.43,6.25231557]
[1754779732433,0.03,180.44,180.43,59.60852809]
[1754779732842,0.03,180.44,180.43,33.60852809]
[1754779733567,0.03,180.44,180.43,59.60852809]
[1754779734647,0.03,180.44,180.43,55.464114]
[1754779735054,0.03,180.46,180.45,26.0]
[1754779735257,0.03,180.46,180.45,34.10558286]
[1754779735456,0.03,180.46,180.45,34.81558286]
[1754779735831,0.03,180.46,180.45,40.35728416]
[1754779736336,0.03,180.46,180.45,55.46349973]